[Event "*** Titled Tuesday Blitz"]
[Site "Chess.com"]
[Date "2020.11.10"]
[Round "10"]
[White "queen_iryna"]
[Black "MaxLeto"]
[Result "1-0"]
[WhiteElo "2283"]
[BlackElo "2392"]
[TimeControl "180+1"]
[EndTime "12:03:11 PST"]
[Termination "queen_iryna won by resignation"]

1. e4 {[%clk 0:03:00.9]} 1... c5 {[%clk 0:01:50.9]} 2. Nf3 {[%clk 0:02:58.9]}
2... d6 {[%clk 0:01:51.3]} 3. Bb5+ {[%clk 0:02:58.4]} 3... Nd7 {[%clk
0:01:50.6]} 4. O-O {[%clk 0:02:58.1]} 4... Nf6 {[%clk 0:01:49.9]} 5. Re1 {[%clk
0:02:56.5]} 5... g6 {[%clk 0:01:47]} 6. c3 {[%clk 0:01:55.9]} 6... a6 {[%clk
0:01:38.3]} 7. Bxd7+ {[%clk 0:01:55.3]} 7... Bxd7 {[%clk 0:01:38.3]} 8. d4
{[%clk 0:01:55.1]} 8... Bc6 {[%clk 0:00:41.7]} 9. e5 {[%clk 0:01:38.1]} 9...
dxe5 {[%clk 0:00:32.8]} 10. Nxe5 {[%clk 0:01:39]} 10... Qd5 {[%clk 0:00:27.4]}
11. Nxc6 {[%clk 0:01:37.6]} 11... Qxc6 {[%clk 0:00:28.3]} 12. dxc5 {[%clk
0:01:34.4]} 12... Qxc5 {[%clk 0:00:26.5]} 13. Be3 {[%clk 0:01:34.5]} 13... Qc6
{[%clk 0:00:24.9]} 14. Bd4 {[%clk 0:01:07.8]} 14... Bg7 {[%clk 0:00:23.3]} 15.
Nd2 {[%clk 0:01:07.6]} 15... Rd8 {[%clk 0:00:14.7]} 16. Qe2 {[%clk 0:01:02.8]}
16... Rd7 {[%clk 0:00:10]} 17. Ne4 {[%clk 0:00:58.4]} 17... Kf8 {[%clk
0:00:05.7]} 18. Nxf6 {[%clk 0:00:57.5]} 18... Bxf6 {[%clk 0:00:06.2]} 19. Rad1
{[%clk 0:00:52.9]} 19... Kg7 {[%clk 0:00:05.5]} 20. Bxf6+ {[%clk 0:00:50.8]}
20... exf6 {[%clk 0:00:06.4]} 21. h3 {[%clk 0:00:47.9]} 21... Rhd8 {[%clk
0:00:06.3]} 22. Rxd7 {[%clk 0:00:46.6]} 22... Qxd7 {[%clk 0:00:07.2]} 23. Qf3
{[%clk 0:00:45.2]} 23... b5 {[%clk 0:00:07]} 24. Kh2 {[%clk 0:00:39.9]} 24...
Qd2 {[%clk 0:00:07.4]} 25. Re2 {[%clk 0:00:38.7]} 25... Qd6+ {[%clk 0:00:07.3]}
26. g3 {[%clk 0:00:38.9]} 26... h5 {[%clk 0:00:07.3]} 27. h4 {[%clk 0:00:38.7]}
27... Rd7 {[%clk 0:00:07.4]} 28. Qe3 {[%clk 0:00:20.1]} 28... Qd1 {[%clk
0:00:07.4]} 29. Re1 {[%clk 0:00:19]} 29... Qc2 {[%clk 0:00:06.7]} 30. Re2 {[%clk
0:00:19]} 30... Qb1 {[%clk 0:00:06.7]} 31. a3 {[%clk 0:00:18.5]} 31... Rd1
{[%clk 0:00:06.1]} 32. Kg2 {[%clk 0:00:18.3]} 32... Rg1+ {[%clk 0:00:06]} 33.
Kf3 {[%clk 0:00:18.5]} 33... Qf5+ {[%clk 0:00:05.6]} 34. Qf4 {[%clk 0:00:17.9]}
34... Qd5+ {[%clk 0:00:05.9]} 35. Qe4 {[%clk 0:00:17.9]} 35... Qd1 {[%clk
0:00:05.6]} 36. Qe3 {[%clk 0:00:16.4]} 36... Re1 {[%clk 0:00:05.4]} 37. b4
{[%clk 0:00:14.4]} 37... Kh7 {[%clk 0:00:05]} 38. Qd2 {[%clk 0:00:11.5]} 38...
Qxe2+ {[%clk 0:00:02.9]} 39. Qxe2 {[%clk 0:00:11.7]} 39... Rxe2 {[%clk
0:00:03.4]} 40. Kxe2 {[%clk 0:00:12.6]} 40... g5 {[%clk 0:00:03.7]} 41. Kd3
{[%clk 0:00:12.5]} 41... Kg6 {[%clk 0:00:03.8]} 42. c4 {[%clk 0:00:12.6]} 42...
bxc4+ {[%clk 0:00:04]} 43. Kxc4 {[%clk 0:00:13.5]} 43... gxh4 {[%clk 0:00:04.5]}
44. gxh4 {[%clk 0:00:13.3]} 44... Kf5 {[%clk 0:00:05.4]} 45. a4 {[%clk
0:00:13.5]} 45... Kg4 {[%clk 0:00:05.6]} 46. b5 {[%clk 0:00:13.9]} 46... axb5+
{[%clk 0:00:05.7]} 47. axb5 {[%clk 0:00:14.8]} 47... Kxh4 {[%clk 0:00:06.4]} 48.
b6 {[%clk 0:00:15.2]} 48... Kg4 {[%clk 0:00:05.4]} 49. b7 {[%clk 0:00:15.4]}
49... h4 {[%clk 0:00:05.8]} 50. b8=Q {[%clk 0:00:15.6]} 50... h3 {[%clk
0:00:06.7]} 51. Qh2 {[%clk 0:00:15.5]} 51... f5 {[%clk 0:00:06.1]} 52. Kd4
{[%clk 0:00:15.8]} 52... f4 {[%clk 0:00:06.3]} 53. Ke4 {[%clk 0:00:16.1]} 53...
f5+ {[%clk 0:00:06.7]} 54. Ke5 {[%clk 0:00:15.6]} 54... Kf3 {[%clk 0:00:06.5]}
55. Qxf4+ {[%clk 0:00:15.7]} 55... Kg2 {[%clk 0:00:06.6]} 56. Kxf5 {[%clk
0:00:15.8]} 56... h2 {[%clk 0:00:06.8]} 57. Qxh2+ {[%clk 0:00:16]} 57... Kf1
{[%clk 0:00:06.9]} 58. f4 {[%clk 0:00:15.6]} 58... Ke1 {[%clk 0:00:07.1]} 59.
Ke5 {[%clk 0:00:15.8]} 1-0

[Event "*** Titled Tuesday Blitz"]
[Site "Chess.com"]
[Date "2020.11.10"]
[Round "10"]
[White "vladgoncharov"]
[Black "Roman_Ovetchkin"]
[Result "0-1"]
[WhiteElo "2478"]
[BlackElo "2613"]
[TimeControl "180+1"]
[EndTime "12:03:15 PST"]
[Termination "Roman_Ovetchkin won on time"]

1. Nf3 {[%clk 0:02:55.5]} 1... Nf6 {[%clk 0:02:56.8]} 2. c4 {[%clk 0:02:54.9]}
2... g6 {[%clk 0:02:56.8]} 3. Nc3 {[%clk 0:02:53.2]} 3... Bg7 {[%clk 0:02:57.3]}
4. e4 {[%clk 0:02:52.6]} 4... d6 {[%clk 0:02:57.6]} 5. d4 {[%clk 0:02:51.8]}
5... O-O {[%clk 0:02:57.9]} 6. Be2 {[%clk 0:02:52.1]} 6... e5 {[%clk 0:02:57.5]}
7. O-O {[%clk 0:02:51]} 7... Nc6 {[%clk 0:02:57]} 8. d5 {[%clk 0:02:51.3]} 8...
Ne7 {[%clk 0:02:56.9]} 9. Ne1 {[%clk 0:02:51.9]} 9... Nd7 {[%clk 0:02:56]} 10.
Be3 {[%clk 0:02:52.5]} 10... f5 {[%clk 0:02:55.6]} 11. f3 {[%clk 0:02:53.2]}
11... f4 {[%clk 0:02:55.8]} 12. Bf2 {[%clk 0:02:53.8]} 12... g5 {[%clk 0:02:56]}
13. Rc1 {[%clk 0:02:53.8]} 13... Ng6 {[%clk 0:02:53.5]} 14. Nd3 {[%clk
0:02:47.6]} 14... Rf7 {[%clk 0:02:50]} 15. c5 {[%clk 0:02:45.6]} 15... Nf6
{[%clk 0:02:49.6]} 16. cxd6 {[%clk 0:02:45.1]} 16... cxd6 {[%clk 0:02:49.7]} 17.
Nb5 {[%clk 0:02:42.8]} 17... a6 {[%clk 0:02:48.8]} 18. Na3 {[%clk 0:02:38.4]}
18... b5 {[%clk 0:02:48.9]} 19. Nb4 {[%clk 0:02:37.1]} 19... g4 {[%clk
0:02:42.3]} 20. Nc6 {[%clk 0:02:33.9]} 20... Qf8 {[%clk 0:02:38]} 21. g3 {[%clk
0:02:28.6]} 21... fxg3 {[%clk 0:02:14.4]} 22. Bxg3 {[%clk 0:02:27.5]} 22... Bh6
{[%clk 0:02:05.1]} 23. Rc3 {[%clk 0:02:19.9]} 23... Nf4 {[%clk 0:01:57.2]} 24.
Nc2 {[%clk 0:01:59]} 24... gxf3 {[%clk 0:01:07.8]} 25. Bxf3 {[%clk 0:01:57.3]}
25... Nh3+ {[%clk 0:01:07.7]} 26. Kg2 {[%clk 0:01:21.2]} 26... Ng5 {[%clk
0:01:07]} 27. Re1 {[%clk 0:01:15.5]} 27... Bh3+ {[%clk 0:01:03.1]} 28. Kg1
{[%clk 0:01:14.1]} 28... Nfxe4 {[%clk 0:00:40.1]} 29. Bxe4 {[%clk 0:01:03.1]}
29... Nxe4 {[%clk 0:00:39.5]} 30. Rce3 {[%clk 0:00:53.8]} 30... Bxe3+ {[%clk
0:00:35.4]} 31. Nxe3 {[%clk 0:00:53.7]} 31... Ng5 {[%clk 0:00:30.8]} 32. Qh5
{[%clk 0:00:44.4]} 32... Nf3+ {[%clk 0:00:27.3]} 33. Kh1 {[%clk 0:00:44.7]}
33... Nxe1 {[%clk 0:00:24.5]} 34. Qxh3 {[%clk 0:00:44.6]} 34... Nf3 {[%clk
0:00:21]} 35. Qg4+ {[%clk 0:00:41.7]} 35... Kh8 {[%clk 0:00:20.8]} 36. Kg2
{[%clk 0:00:39.2]} 36... Qg7 {[%clk 0:00:19.6]} 37. Qxg7+ {[%clk 0:00:14.9]}
37... Kxg7 {[%clk 0:00:20.5]} 38. Ng4 {[%clk 0:00:12.3]} 38... Kg6 {[%clk
0:00:19.3]} 39. Nf2 {[%clk 0:00:12.4]} 39... Ng5 {[%clk 0:00:17.3]} 40. h4
{[%clk 0:00:12.3]} 40... Rxf2+ {[%clk 0:00:16.2]} 41. Bxf2 {[%clk 0:00:11.5]}
41... Ne4 {[%clk 0:00:16.7]} 42. Bb6 {[%clk 0:00:11.3]} 42... Nf6 {[%clk
0:00:15.6]} 43. Ne7+ {[%clk 0:00:10.2]} 43... Kf7 {[%clk 0:00:14.9]} 44. Nf5
{[%clk 0:00:09.6]} 44... Nxd5 {[%clk 0:00:15]} 45. Bf2 {[%clk 0:00:09.1]} 45...
Ke6 {[%clk 0:00:14.2]} 46. Ng7+ {[%clk 0:00:06]} 46... Kf6 {[%clk 0:00:14.3]}
47. Nh5+ {[%clk 0:00:05.1]} 47... Kg6 {[%clk 0:00:14.6]} 48. Ng3 {[%clk
0:00:04.6]} 48... Nf4+ {[%clk 0:00:15.1]} 49. Kf3 {[%clk 0:00:04.6]} 49... d5
{[%clk 0:00:15.7]} 50. Be3 {[%clk 0:00:04.6]} 50... h5 {[%clk 0:00:15]} 51. Bxf4
{[%clk 0:00:02.5]} 51... Rf8 {[%clk 0:00:15.5]} 52. Ne2 {[%clk 0:00:03]} 52...
Rxf4+ {[%clk 0:00:11.8]} 53. Nxf4+ {[%clk 0:00:02.6]} 53... exf4 {[%clk
0:00:12.1]} 54. Kxf4 {[%clk 0:00:02.7]} 54... Kf6 {[%clk 0:00:12.6]} 0-1

[Event "*** Titled Tuesday Blitz"]
[Site "Chess.com"]
[Date "2020.11.10"]
[Round "10"]
[White "PlotnikovPavel"]
[Black "kai_nov"]
[Result "0-1"]
[WhiteElo "2439"]
[BlackElo "2344"]
[TimeControl "180+1"]
[EndTime "12:03:16 PST"]
[Termination "kai_nov won by checkmate"]

1. e4 {[%clk 0:03:00.9]} 1... c5 {[%clk 0:02:59.7]} 2. Nc3 {[%clk 0:03:00.6]}
2... e6 {[%clk 0:02:58.4]} 3. Nge2 {[%clk 0:03:00.3]} 3... d5 {[%clk 0:02:57.4]}
4. d4 {[%clk 0:03:01.2]} 4... Nc6 {[%clk 0:02:40.7]} 5. exd5 {[%clk 0:02:58.8]}
5... exd5 {[%clk 0:02:38.5]} 6. Be3 {[%clk 0:02:57.9]} 6... cxd4 {[%clk
0:02:34.1]} 7. Nxd4 {[%clk 0:02:57.3]} 7... Nf6 {[%clk 0:02:31.8]} 8. Bb5 {[%clk
0:02:50.2]} 8... Bd7 {[%clk 0:02:30.1]} 9. O-O {[%clk 0:02:46.1]} 9... Bb4
{[%clk 0:02:29.6]} 10. Bg5 {[%clk 0:02:31.8]} 10... Bxc3 {[%clk 0:02:24.9]} 11.
bxc3 {[%clk 0:02:29.1]} 11... O-O {[%clk 0:02:24.1]} 12. Nf3 {[%clk 0:02:06.6]}
12... Bg4 {[%clk 0:02:07.2]} 13. h3 {[%clk 0:02:00.4]} 13... Bh5 {[%clk
0:02:04.8]} 14. Bxf6 {[%clk 0:01:53]} 14... Qxf6 {[%clk 0:02:03.2]} 15. Qxd5
{[%clk 0:01:51.7]} 15... Bxf3 {[%clk 0:01:45.3]} 16. Qxf3 {[%clk 0:01:52.6]}
16... Qxf3 {[%clk 0:01:41.4]} 17. gxf3 {[%clk 0:01:53.5]} 17... Rac8 {[%clk
0:01:41.1]} 18. Rfe1 {[%clk 0:01:45.8]} 18... g6 {[%clk 0:01:35.1]} 19. Re3
{[%clk 0:01:41.8]} 19... Rfd8 {[%clk 0:01:26.6]} 20. Rae1 {[%clk 0:01:38.3]}
20... Rd2 {[%clk 0:01:23.7]} 21. R3e2 {[%clk 0:01:36.8]} 21... Rxe2 {[%clk
0:01:15.8]} 22. Rxe2 {[%clk 0:01:37.7]} 22... a6 {[%clk 0:01:14.8]} 23. Bd3
{[%clk 0:01:35.3]} 23... Rc7 {[%clk 0:01:06.8]} 24. Re8+ {[%clk 0:01:10.3]}
24... Kg7 {[%clk 0:01:06.6]} 25. Kf1 {[%clk 0:01:10.6]} 25... Kf6 {[%clk
0:01:01.7]} 26. Ke2 {[%clk 0:01:08.1]} 26... h5 {[%clk 0:00:57.8]} 27. Be4
{[%clk 0:01:04.6]} 27... Ne5 {[%clk 0:00:49.9]} 28. f4 {[%clk 0:00:54.5]} 28...
Nd7 {[%clk 0:00:46.9]} 29. Kd2 {[%clk 0:00:42.9]} 29... Nc5 {[%clk 0:00:46.4]}
30. Bd3 {[%clk 0:00:20.3]} 30... Ne6 {[%clk 0:00:45]} 31. Ke3 {[%clk 0:00:10.4]}
31... Rxc3 {[%clk 0:00:43.2]} 32. Rb8 {[%clk 0:00:09.1]} 32... Rc7 {[%clk
0:00:42.3]} 33. Be4 {[%clk 0:00:07.8]} 33... Nc5 {[%clk 0:00:42.5]} 34. Bf3
{[%clk 0:00:07.7]} 34... Ke7 {[%clk 0:00:37.8]} 35. Kd4 {[%clk 0:00:07.5]} 35...
Ne6+ {[%clk 0:00:37.5]} 36. Ke3 {[%clk 0:00:07]} 36... Rxc2 {[%clk 0:00:34.8]}
37. Rxb7+ {[%clk 0:00:06.2]} 37... Kf6 {[%clk 0:00:35.2]} 38. Bd5 {[%clk
0:00:06.5]} 38... Rc3+ {[%clk 0:00:32.4]} 39. Ke2 {[%clk 0:00:05]} 39... Nxf4+
{[%clk 0:00:30.2]} 40. Kd2 {[%clk 0:00:04.6]} 40... Rd3+ {[%clk 0:00:30.5]} 41.
Kc2 {[%clk 0:00:03.7]} 41... Rxd5 {[%clk 0:00:30.5]} 42. Rb6+ {[%clk 0:00:04.6]}
42... Kf5 {[%clk 0:00:30.5]} 43. Rxa6 {[%clk 0:00:05.5]} 43... Nxh3 {[%clk
0:00:29.6]} 44. Ra7 {[%clk 0:00:06.4]} 44... f6 {[%clk 0:00:29.3]} 45. f3 {[%clk
0:00:05.9]} 45... Ng5 {[%clk 0:00:27.8]} 46. Ra3 {[%clk 0:00:04.8]} 46... Kf4
{[%clk 0:00:27]} 47. Ra6 {[%clk 0:00:04.9]} 47... Rf5 {[%clk 0:00:24.6]} 48. Ra3
{[%clk 0:00:05]} 48... Nxf3 {[%clk 0:00:24.4]} 49. Ra4+ {[%clk 0:00:05.9]} 49...
Kg3 {[%clk 0:00:24.1]} 50. Kd1 {[%clk 0:00:06.8]} 50... h4 {[%clk 0:00:24.2]}
51. Ra3 {[%clk 0:00:06.6]} 51... h3 {[%clk 0:00:24.3]} 52. Ke2 {[%clk
0:00:07.5]} 52... h2 {[%clk 0:00:24.5]} 53. Ra8 {[%clk 0:00:06.8]} 53... h1=Q
{[%clk 0:00:24.1]} 54. Kd3 {[%clk 0:00:07.7]} 54... Qd1+ {[%clk 0:00:23.7]} 55.
Kc4 {[%clk 0:00:07.3]} 55... Qd4+ {[%clk 0:00:23.5]} 56. Kb3 {[%clk 0:00:06.4]}
56... Rb5+ {[%clk 0:00:23.4]} 57. Ka3 {[%clk 0:00:05]} 57... Qb4# {[%clk
0:00:23.1]} 0-1

[Event "*** Titled Tuesday Blitz"]
[Site "Chess.com"]
[Date "2020.11.10"]
[Round "10"]
[White "TST2014"]
[Black "dosto07"]
[Result "0-1"]
[WhiteElo "2473"]
[BlackElo "2327"]
[TimeControl "180+1"]
[EndTime "12:03:23 PST"]
[Termination "dosto07 won on time"]

1. d4 {[%clk 0:03:00.9]} 1... d5 {[%clk 0:02:59.7]} 2. c4 {[%clk 0:02:59.6]}
2... dxc4 {[%clk 0:02:59.1]} 3. e3 {[%clk 0:02:58.3]} 3... Nf6 {[%clk
0:02:58.9]} 4. Bxc4 {[%clk 0:02:58]} 4... e6 {[%clk 0:02:59.5]} 5. Nf3 {[%clk
0:02:57.8]} 5... c5 {[%clk 0:03:00.1]} 6. O-O {[%clk 0:02:58.1]} 6... a6 {[%clk
0:03:00.3]} 7. a4 {[%clk 0:02:57.7]} 7... Nc6 {[%clk 0:02:59.7]} 8. Qe2 {[%clk
0:02:54.8]} 8... Be7 {[%clk 0:02:59.3]} 9. Rd1 {[%clk 0:02:54.2]} 9... O-O
{[%clk 0:02:59]} 10. dxc5 {[%clk 0:02:49.6]} 10... Qc7 {[%clk 0:02:58.6]} 11. e4
{[%clk 0:02:46.8]} 11... Bxc5 {[%clk 0:02:48.3]} 12. h3 {[%clk 0:02:44.3]} 12...
Nh5 {[%clk 0:02:23.1]} 13. e5 {[%clk 0:02:40.5]} 13... Ng3 {[%clk 0:02:19.4]}
14. Qe1 {[%clk 0:02:27.5]} 14... Nf5 {[%clk 0:02:18.6]} 15. Nc3 {[%clk
0:02:20.5]} 15... Nfd4 {[%clk 0:01:46.3]} 16. Nxd4 {[%clk 0:02:02.8]} 16... Bxd4
{[%clk 0:01:45.1]} 17. Bf4 {[%clk 0:01:44.7]} 17... Bxe5 {[%clk 0:01:42.2]} 18.
Bxe5 {[%clk 0:01:41.7]} 18... Nxe5 {[%clk 0:01:36.7]} 19. Bb3 {[%clk 0:01:38]}
19... Bd7 {[%clk 0:01:35.2]} 20. Rac1 {[%clk 0:01:35.1]} 20... Bc6 {[%clk
0:01:35]} 21. Ne4 {[%clk 0:01:29.8]} 21... Rfd8 {[%clk 0:01:26.8]} 22. Qe3
{[%clk 0:01:20.5]} 22... Rxd1+ {[%clk 0:01:19.4]} 23. Rxd1 {[%clk 0:01:19.5]}
23... Rd8 {[%clk 0:01:18]} 24. Rd4 {[%clk 0:01:13.3]} 24... h6 {[%clk
0:01:11.5]} 25. Nd6 {[%clk 0:01:05.7]} 25... Rxd6 {[%clk 0:01:00.3]} 26. Qxe5
{[%clk 0:01:05.2]} 26... Rd7 {[%clk 0:01:00.4]} 27. Qxc7 {[%clk 0:01:03.6]}
27... Rxc7 {[%clk 0:01:00.2]} 28. a5 {[%clk 0:01:03.1]} 28... Kf8 {[%clk
0:00:57.2]} 29. f3 {[%clk 0:00:59.1]} 29... Ke7 {[%clk 0:00:56.7]} 30. Kf2
{[%clk 0:00:59]} 30... Rd7 {[%clk 0:00:56.7]} 31. Ke3 {[%clk 0:00:58.8]} 31...
Rxd4 {[%clk 0:00:55.7]} 32. Kxd4 {[%clk 0:00:59.7]} 32... Kd6 {[%clk 0:00:56]}
33. h4 {[%clk 0:00:58]} 33... e5+ {[%clk 0:00:53.1]} 34. Kc3 {[%clk 0:00:52]}
34... f5 {[%clk 0:00:52.9]} 35. Bc2 {[%clk 0:00:51]} 35... f4 {[%clk 0:00:38.3]}
36. b4 {[%clk 0:00:49.9]} 36... g5 {[%clk 0:00:37.1]} 37. hxg5 {[%clk 0:00:49]}
37... hxg5 {[%clk 0:00:37]} 38. Bf5 {[%clk 0:00:45.4]} 38... Bb5 {[%clk
0:00:26]} 39. Be4 {[%clk 0:00:45.3]} 39... Kc7 {[%clk 0:00:21.8]} 40. Bf5 {[%clk
0:00:44.2]} 40... Bf1 {[%clk 0:00:20.3]} 41. Bh3 {[%clk 0:00:44]} 41... b6
{[%clk 0:00:20.2]} 42. Kb3 {[%clk 0:00:39.7]} 42... bxa5 {[%clk 0:00:19.1]} 43.
bxa5 {[%clk 0:00:40.6]} 43... Kd6 {[%clk 0:00:19.3]} 44. Kb4 {[%clk 0:00:34.8]}
44... Kd5 {[%clk 0:00:18.3]} 45. Bc8 {[%clk 0:00:32.9]} 45... Kd4 {[%clk
0:00:17.5]} 46. Bb7 {[%clk 0:00:32.9]} 46... Bxg2 {[%clk 0:00:13.7]} 47. Bxa6
{[%clk 0:00:31.6]} 47... Bxf3 {[%clk 0:00:13.5]} 48. Bf1 {[%clk 0:00:25.7]}
48... g4 {[%clk 0:00:12.3]} 49. a6 {[%clk 0:00:26.2]} 49... g3 {[%clk
0:00:11.9]} 50. a7 {[%clk 0:00:26.7]} 50... g2 {[%clk 0:00:11.1]} 51. Be2 {[%clk
0:00:25.2]} 51... Bd5 {[%clk 0:00:06.9]} 52. Bc4 {[%clk 0:00:24.5]} 52... Be4
{[%clk 0:00:03.7]} 53. Bb5 {[%clk 0:00:20.2]} 53... Ba8 {[%clk 0:00:03.8]} 54.
Ka5 {[%clk 0:00:20.9]} 54... g1=Q {[%clk 0:00:03.8]} 55. Kb6 {[%clk 0:00:21.6]}
55... Qb1 {[%clk 0:00:03]} 56. Ka5 {[%clk 0:00:14.8]} 56... Kc5 {[%clk
0:00:02.6]} 57. Ba4 {[%clk 0:00:14.3]} 57... Qa1 {[%clk 0:00:02.9]} 0-1

[Event "*** Titled Tuesday Blitz"]
[Site "Chess.com"]
[Date "2020.11.10"]
[Round "10"]
[White "Harry_Rakkel"]
[Black "jens1102"]
[Result "1/2-1/2"]
[WhiteElo "2526"]
[BlackElo "2383"]
[TimeControl "180+1"]
[EndTime "12:03:26 PST"]
[Termination "Game drawn - insufficient material"]

1. c4 {[%clk 0:03:00.9]} 1... e6 {[%clk 0:02:56.8]} 2. g3 {[%clk 0:02:57.8]}
2... c5 {[%clk 0:02:56.7]} 3. Bg2 {[%clk 0:02:57.5]} 3... Nc6 {[%clk 0:02:57.6]}
4. Nf3 {[%clk 0:02:57.1]} 4... g6 {[%clk 0:02:54.3]} 5. d4 {[%clk 0:02:53.8]}
5... cxd4 {[%clk 0:02:54.3]} 6. Nxd4 {[%clk 0:02:54]} 6... Nge7 {[%clk
0:02:54.6]} 7. Nb5 {[%clk 0:02:43.3]} 7... d5 {[%clk 0:02:42.4]} 8. cxd5 {[%clk
0:02:41.3]} 8... Nxd5 {[%clk 0:02:41.4]} 9. O-O {[%clk 0:02:35.9]} 9... a6
{[%clk 0:02:31.2]} 10. N5c3 {[%clk 0:02:34.4]} 10... Nxc3 {[%clk 0:02:28.9]} 11.
Nxc3 {[%clk 0:02:35.3]} 11... Bg7 {[%clk 0:02:17.4]} 12. Qxd8+ {[%clk
0:02:33.6]} 12... Nxd8 {[%clk 0:02:17.1]} 13. Na4 {[%clk 0:02:32.5]} 13... Rb8
{[%clk 0:02:10.2]} 14. Bf4 {[%clk 0:02:18.4]} 14... e5 {[%clk 0:02:08.2]} 15.
Be3 {[%clk 0:02:18.8]} 15... b5 {[%clk 0:02:05]} 16. Ba7 {[%clk 0:02:12]} 16...
Rb7 {[%clk 0:02:02.6]} 17. Bxb7 {[%clk 0:02:11]} 17... Bxb7 {[%clk 0:01:57.3]}
18. Nc5 {[%clk 0:02:11.1]} 18... Bc8 {[%clk 0:01:55.9]} 19. Rfd1 {[%clk
0:01:59.9]} 19... O-O {[%clk 0:01:54.9]} 20. Rd6 {[%clk 0:01:57]} 20... Nb7
{[%clk 0:01:48.8]} 21. Nxb7 {[%clk 0:01:55.1]} 21... Bxb7 {[%clk 0:01:49.7]} 22.
Rc1 {[%clk 0:01:48.7]} 22... e4 {[%clk 0:01:48.9]} 23. Bd4 {[%clk 0:01:46.2]}
23... Bxd4 {[%clk 0:01:16.3]} 24. Rxd4 {[%clk 0:01:45.3]} 24... Re8 {[%clk
0:01:17.2]} 25. Rc7 {[%clk 0:01:43.3]} 25... Bc8 {[%clk 0:01:17.3]} 26. Ra7
{[%clk 0:01:36.3]} 26... Be6 {[%clk 0:01:15.9]} 27. Rxa6 {[%clk 0:01:31.5]}
27... Rc8 {[%clk 0:01:15.3]} 28. Kg2 {[%clk 0:01:13.6]} 28... Rc2 {[%clk
0:01:11.9]} 29. Rxe6 {[%clk 0:01:08.5]} 29... fxe6 {[%clk 0:01:11.3]} 30. Rxe4
{[%clk 0:01:08.8]} 30... Rxb2 {[%clk 0:01:09.2]} 31. Rxe6 {[%clk 0:01:08.2]}
31... Kf7 {[%clk 0:01:05.2]} 32. Re5 {[%clk 0:01:00.6]} 32... Rxa2 {[%clk
0:01:02.5]} 33. Kf3 {[%clk 0:00:58.5]} 33... Rb2 {[%clk 0:01:01.7]} 34. h4
{[%clk 0:00:54.8]} 34... Kf6 {[%clk 0:00:59.8]} 35. Rc5 {[%clk 0:00:54.2]} 35...
b4 {[%clk 0:00:58]} 36. g4 {[%clk 0:00:51.3]} 36... b3 {[%clk 0:00:56.2]} 37.
Rb5 {[%clk 0:00:50.4]} 37... h6 {[%clk 0:00:55.7]} 38. g5+ {[%clk 0:00:48.8]}
38... hxg5 {[%clk 0:00:54.3]} 39. hxg5+ {[%clk 0:00:49.7]} 39... Kf7 {[%clk
0:00:54.7]} 40. Rb6 {[%clk 0:00:48.5]} 40... Rb1 {[%clk 0:00:54.5]} 41. Ke3
{[%clk 0:00:45.6]} 41... b2 {[%clk 0:00:54.6]} 42. f4 {[%clk 0:00:45.3]} 42...
Ke7 {[%clk 0:00:52.3]} 43. Kf2 {[%clk 0:00:40.9]} 43... Kd7 {[%clk 0:00:51.2]}
44. Ke3 {[%clk 0:00:28.4]} 44... Kc7 {[%clk 0:00:48.5]} 45. Rb4 {[%clk
0:00:24.1]} 45... Kd6 {[%clk 0:00:46.4]} 46. Ke4 {[%clk 0:00:23.4]} 46... Kc5
{[%clk 0:00:43.9]} 47. Rb8 {[%clk 0:00:21.7]} 47... Kc4 {[%clk 0:00:43.9]} 48.
Ke5 {[%clk 0:00:20.6]} 48... Kc3 {[%clk 0:00:36.6]} 49. e4 {[%clk 0:00:19.6]}
49... Rf1 {[%clk 0:00:28.4]} 50. f5 {[%clk 0:00:18.9]} 50... b1=Q {[%clk
0:00:08.9]} 51. Rxb1 {[%clk 0:00:17.5]} 51... Rxb1 {[%clk 0:00:09.8]} 52. fxg6
{[%clk 0:00:17.4]} 52... Rb6 {[%clk 0:00:04]} 53. Kf5 {[%clk 0:00:15.2]} 53...
Kd4 {[%clk 0:00:04.1]} 54. g7 {[%clk 0:00:14.1]} 54... Rb8 {[%clk 0:00:04.3]}
55. e5 {[%clk 0:00:14.2]} 55... Kd5 {[%clk 0:00:04.4]} 56. Kf6 {[%clk
0:00:13.6]} 56... Rb6+ {[%clk 0:00:03.9]} 57. Kf7 {[%clk 0:00:11]} 57... Rb7+
{[%clk 0:00:04.3]} 58. Kg6 {[%clk 0:00:11.1]} 58... Rb8 {[%clk 0:00:04.7]} 59.
Kh7 {[%clk 0:00:10.9]} 59... Kxe5 {[%clk 0:00:05.2]} 60. g8=Q {[%clk 0:00:08.6]}
60... Rxg8 {[%clk 0:00:05.3]} 61. Kxg8 {[%clk 0:00:09.5]} 61... Kf5 {[%clk
0:00:06.2]} 62. Kf7 {[%clk 0:00:09.5]} 62... Kxg5 {[%clk 0:00:04.8]} 1/2-1/2